{"text_format":"1","workbook":"xlsx","n_sheets":9,"sheets":["Instruktioner","Sammanfattning","Basterminer","Allmänna ingenjörskurser","Profilkurser","Övriga kurser","Patch notes","Random code","Ej inlagda kurser"],"not_rendered":{"charts":0,"images":0,"macros":1,"external_links":0,"defined_names":0,"comments":0,"pivot_tables":0},"unopened":[],"bounds":{"document_bytes":16777216,"sheet_cells":100000,"rows_first":2000,"rows_last":500,"rows_between":2000,"halvings":0,"cell_chars":16384,"cell_head_chars":4096},"cells_cut":0,"cells_raw":0,"read":"whole","date_system":"1900"}

{"sheet":"Instruktioner","index":0,"n_rows":53,"n_cols":3,"rows_kept":53,"cut":false,"hidden":false,"merged":[[20,0,20,12],[21,0,22,12],[0,0,0,12],[5,0,5,12],[14,0,14,12],[15,0,18,12],[6,0,12,12],[1,0,3,12]]}
["Individuell studieplan (ISP): instruktioner"]
["Läs och följ anvisningarna noggrant! (För att undvika onödiga handläggningstider för din ISP.)\nDu som student är ansvarig för att alla poäng och kursnamn stämmer! Kontrollera uppgifterna mot utbildningsplanen på Umeå universitets hemsida.\nNotera att utbildningsplanen är det styrande dokumentet (Röda Tråden är bara en impementering av denna och kan innehålla fel).   "]
[]
[]
[]
["Så här gör du för att fylla i din individuella studieplan manuellt"]
["I fliken Sammanfattning ska du endast fylla i de orangefärgade fälten. All kursinformation ska fyllas i och/eller redigeras under flikarna Basterminer, Allmänna ingenjörskurser, Profilkurser och Övriga kurser. När du markerar en cell i kolumnen under Checkbox läggs ett x in som markerar att du har läst kursen i fråga. När du markerat alla kurser som du har läst och kontrollerat alla poängkategorier, gå till fliken Sammanfattning och tryck på knappen Generera sammanfattning. För att ISPn ska fungera korrekt så måste du aktivera redigering och aktivera macron i Excel. Om du märker att en kurs har felaktiga poäng i någon kolumn bör du manuellt skriva över i cellen med den korrekta poängen (OBS: det går inte att göra ändringar i sammanfattningsfliken), och sedan generera din sammanfattning på nytt. Vid eventuella felaktigheter i ISPn, vänligen kontakta IT-amanuens på it@tekniskfysik.se. ) Använd kommentarskolumnen för att ange t.ex. kurser som ej är avklarade (och varför) eller kurser som planeras. Glöm ej att ange datum för alla kurser du är godkänd på!"]
[]
[]
[]
[]
[]
[]
[]
["Röda tråden"]
["Röda tråden kan fylla i din ISP automatiskt. Logga in på Röda tråden, välj ditt blockschema och klicka på Generera ISP. Här kan du antingen generera en ny ISP direkt från blockschemat, eller ladda upp en påbörjad ISP som Röda Tråden fyller i utan att radera någon information. Klicka seda på Ladda ned för att hämta filen. Notera att kurser som inte registrerats i genereringen nu dyker upp på en ny flik Ej inlagt - dessa kurser måste du lägga in på egen hand. "]
[]
[]
[]
[]
["När du mailar din ISP"]
["Maila alltid din ISP i Excel-format (xlsm) när du vill kommunicera den till den som berörs, t.ex. programansvariga eller studievägledare för granskning inför examensarbete, tillgodoräknande, studievägledning eller examensansökan."]
[]
[]
["Flikförklaring"]
["Instruktioner","Fliken du är på just nu, här finns information angående hur ISPn fungerar."]
["Sammanfattning","Här fyller du i din personliga information samt genererar din sammanfattning från de ikryssade kurserna på de andra flikarna."]
["Basterminer","Denna flik innehåller kurserna från basterminerna."]
["Allmänna ingenjörskurser","Denna flik innehåller allmänna ingenjörskurser."]
["Profilkurser","Denna flik innehåller profilkurser."]
["Övriga kurser","Denna flik lägger du in tillgodoräknade kurser eller fria kurser."]
["Patch notes","Här kan du läsa om de senaste uppdateringarna i ISPn för att se om någon bugg har fixats."]
[]
["Kolumnförklaring"]
[{"$f":"Sammanfattning!A24","v":"Checkbox"},{"$f":"Sammanfattning!A23","v":"1."},"Markera cell för att kryssa i med ett x, avmarkera och markera för att kryssa ur ditt x."]
[{"$f":"Sammanfattning!B24","v":"Kursnamn"},{"$f":"Sammanfattning!B23","v":"2."},"Kursens namn."]
[{"$f":"Sammanfattning!C24","v":"Kurskod"},{"$f":"Sammanfattning!C23","v":"3."},"Kurskod."]
[{"$f":"Sammanfattning!D24","v":"Datum (ååååmmdd)"},{"$f":"Sammanfattning!D23","v":"4."},"Datum för godkänt på kursen. Måste anges på formatet ååååmmdd."]
[{"$f":"Sammanfattning!E24","v":"Studentens kommentar"},{"$f":"Sammanfattning!E23","v":"5."},"Din kommentar angående kursen."]
[{"$f":"Sammanfattning!F24","v":"Programledningens kommentar"},{"$f":"Sammanfattning!F23","v":"6."},"Kommentar från programledningen angående kursen."]
[{"$f":"Sammanfattning!G24","v":"Hp"},{"$f":"Sammanfattning!G23","v":"7."},"Totalt antal hp för kursen."]
[{"$f":"Sammanfattning!H24","v":"MaBer"},{"$f":"Sammanfattning!H23","v":"8."},"Hp kategori matematiska och beräkningsvetenskapliga verktyg."]
[{"$f":"Sammanfattning!I24","v":"StatMät"},{"$f":"Sammanfattning!I23","v":"9."},"Hp kategori statistisk analys och mätvärdesbehandling."]
[{"$f":"Sammanfattning!J24","v":"FyT"},{"$f":"Sammanfattning!J23","v":"10."},"Hp kategori fysikalisk teori med tillämpningar."]
[{"$f":"Sammanfattning!K24","v":"Aing"},{"$f":"Sammanfattning!K23","v":"11."},"Hp kategori allmänna ingenjörskurser."]
[{"$f":"Sammanfattning!L24","v":"Prof"},{"$f":"Sammanfattning!L23","v":"12."},"Hp kategori profilkurser."]
[{"$f":"Sammanfattning!M24","v":"PL"},{"$f":"Sammanfattning!M23","v":"13."},"Hp projektledning (minst 7,5hp i examen) (notera att projektledning och projektarbete inte är samma sak)."]
[{"$f":"Sammanfattning!N24","v":"PaN"},{"$f":"Sammanfattning!N23","v":"14.1"},"Hp projektarbete mot näringsliv/samhälle (minst 7,5hp i examen)."]
[{"$f":"Sammanfattning!O24","v":"PaTot"},{"$f":"Sammanfattning!O23","v":"14.2"},"Totala hp projektarbete (minst 15hp i examen)."]
[{"$f":"Sammanfattning!P24","v":"Hut"},{"$f":"Sammanfattning!P23","v":"15."},"Hp hållbar utveckling (minst 7,5hp i examen)."]
[{"$f":"Sammanfattning!Q24","v":"Data"},{"$f":"Sammanfattning!Q23","v":"16."},"Hp datavetenskap (minst 12hp i examen). Gäller enbart kategori ma-ber-verktyg."]
[{"$f":"Sammanfattning!R24","v":"Avn"},{"$f":"Sammanfattning!R23","v":"17."},"Hp kurser på avancerad nivå."]
[{"$f":"Sammanfattning!S24","v":"Fria"},{"$f":"Sammanfattning!S23","v":"18."},"Hp fria kurser."]

{"sheet":"Sammanfattning","index":1,"n_rows":24,"n_cols":19,"rows_kept":24,"cut":false,"hidden":false,"merged":[[7,2,7,4],[0,2,0,4],[21,12,21,18],[19,6,19,18],[20,7,20,18],[14,9,14,10],[0,7,0,11],[3,7,3,8],[4,7,4,8],[5,7,5,8],[6,7,6,8],[7,7,7,8],[8,7,8,8],[9,7,9,8],[10,7,10,8],[11,7,11,8],[12,7,12,8],[15,7,15,8],[15,9,15,10],[14,7,14,8],[12,9,12,10],[13,9,13,10],[8,9,8,10],[1,9,1,10],[2,9,2,10],[3,9,3,10],[4,9,4,10],[5,9,5,10],[8,2,10,4],[1,7,1,8],[2,7,2,8],[21,10,21,11],[1,2,1,4],[2,2,2,4],[3,2,3,4],[4,2,4,4],[21,7,21,9],[13,7,13,8],[5,2,5,4],[10,9,10,10],[11,9,11,10],[9,9,9,10],[6,9,6,10],[7,9,7,10]]}
[null,null,"Personuppgifter",null,null,null,null,"Sammanfattning"]
[null,"Datum (ååååmmdd):",null,null,null,null,null,"Kategori",null,"Min. krav hp",null,"hp"]
[null,"Namn (Förnamn Efternamn):",null,null,null,null,null,"Total poäng",null,300,null,0]
[null,"Personnummer (ååååmmdd-xxxx):",null,null,null,null,null,"MaBer",null,67.5,null,0]
[null,"Telefon:",null,null,null,null,null,"StatMät",null,12,null,0]
[null,"E-post:",null,null,null,null,null,"FyT",null,60,null,0]
[null,"Började på TF (Termin, år (åååå) och klass FXX):",null,null,null,null,null,"Aing",null,52.5,null,0]
[null,"Anledning till individuell studieplan:",null,null,null,null,null,"Prof",null,45,null,0]
[null,"Kommentar:",null,null,null,null,null,"PL",null,7.5,null,0]
[null,null,null,null,null,null,null,"PaN",null,7.5,null,0]
[null,null,null,null,null,null,null,"PaTot",null,15,null,0]
[null,null,null,null,null,null,null,"Hut",null,7.5,null,0]
[null,null,null,null,null,null,null,"Data",null,12,null,0]
[{"$f":"A24","v":"Checkbox"},"Namn på examensarbete",{"$f":"C24","v":"Kurskod"},{"$f":"D24","v":"Datum (ååååmmdd)"},"Arbetsplats",null,null,"Avn",null,60,null,0]
["",null,"5FY123",null,null,null,null,"Fria kurser",null,"Max 30",null,0]
[null,null,null,null,null,null,null,"Examensarbete",null,30,null,0]
[null,null,null,null,null,null,null,null,null,null,null,null,null,"  "]
[]
[]
[null,null,null,null,null,null,"Högskolepoäng (hp)"]
[null,null,null,null,null,null,null,"Varav (hp)…"]
[null,null,null,null,null,null,null,"Baskurser (hp)",null,null,"Övriga kurser",null,"Övriga krav"]
["1.","2.","3.","4.","5.","6.","7.","8.","9.","10.","11.","12.","13.","14.1","14.2","15.","16.","17.","18."]
["Checkbox","Kursnamn","Kurskod","Datum (ååååmmdd)","Studentens kommentar","Programledningens kommentar","Hp","MaBer","StatMät","FyT","Aing","Prof","PL","PaN","PaTot","Hut","Data","Avn","Fria"]

{"sheet":"Basterminer","index":2,"n_rows":41,"n_cols":19,"rows_kept":41,"cut":false,"hidden":false,"merged":[[3,7,3,9],[3,10,3,11],[3,12,3,18],[1,6,1,18],[2,7,2,18]]}
[]
[null,null,null,null,null,null,{"$f":"Sammanfattning!G20","v":"Högskolepoäng (hp)"}]
[null,null,null,null,null,null,null,{"$f":"Sammanfattning!H21","v":"Varav (hp)…"}]
[null,null,null,null,null,null,null,{"$f":"Sammanfattning!H22","v":"Baskurser (hp)"},null,null,{"$f":"Sammanfattning!K22","v":"Övriga kurser"},null,{"$f":"Sammanfattning!M22","v":"Övriga krav"}]
[{"$f":"Sammanfattning!A23","v":"1."},{"$f":"Sammanfattning!B23","v":"2."},{"$f":"Sammanfattning!C23","v":"3."},{"$f":"Sammanfattning!D23","v":"4."},{"$f":"Sammanfattning!E23","v":"5."},{"$f":"Sammanfattning!F23","v":"6."},{"$f":"Sammanfattning!G23","v":"7."},{"$f":"Sammanfattning!H23","v":"8."},{"$f":"Sammanfattning!I23","v":"9."},{"$f":"Sammanfattning!J23","v":"10."},{"$f":"Sammanfattning!K23","v":"11."},{"$f":"Sammanfattning!L23","v":"12."},{"$f":"Sammanfattning!M23","v":"13."},{"$f":"Sammanfattning!N23","v":"14.1"},{"$f":"Sammanfattning!O23","v":"14.2"},{"$f":"Sammanfattning!P23","v":"15."},{"$f":"Sammanfattning!Q23","v":"16."},{"$f":"Sammanfattning!R23","v":"17."},{"$f":"Sammanfattning!S23","v":"18."}]
[{"$f":"Sammanfattning!A24","v":"Checkbox"},{"$f":"Sammanfattning!B24","v":"Kursnamn"},{"$f":"Sammanfattning!C24","v":"Kurskod"},{"$f":"Sammanfattning!D24","v":"Datum (ååååmmdd)"},{"$f":"Sammanfattning!E24","v":"Studentens kommentar"},{"$f":"Sammanfattning!F24","v":"Programledningens kommentar"},{"$f":"Sammanfattning!G24","v":"Hp"},{"$f":"Sammanfattning!H24","v":"MaBer"},{"$f":"Sammanfattning!I24","v":"StatMät"},{"$f":"Sammanfattning!J24","v":"FyT"},{"$f":"Sammanfattning!K24","v":"Aing"},{"$f":"Sammanfattning!L24","v":"Prof"},{"$f":"Sammanfattning!M24","v":"PL"},{"$f":"Sammanfattning!N24","v":"PaN"},{"$f":"Sammanfattning!O24","v":"PaTot"},{"$f":"Sammanfattning!P24","v":"Hut"},{"$f":"Sammanfattning!Q24","v":"Data"},{"$f":"Sammanfattning!R24","v":"Avn"},{"$f":"Sammanfattning!S24","v":"Fria"}]
[null,"Baskurser inom allmänna ingenjörsområdet"]
[null,"Inledande ingenjörskurs i teknisk fysik",null,null,null,null,7.5,null,null,null,7.5,null,null,null,1]
[null,"Metoder och verktyg för ingenjörer","5FY137","20160921",null,null,7.5,null,null,null,7.5,null,null,null,1]
[null,"Ingenjörens roll i arbetslivet","5TN026","20180603",null,null,7.5,null,null,null,7.5,null,null,4.5,4.5]
[null,"Tekniska tillämpningar i klassisk och modern fysik","5FY222","20240916",null,null,4.5,null,null,null,4.5]
[null,"Matematiska och beräkningsvetenskapliga verktyg "]
[null,"Programmeringsteknik med C och Matlab","5DV157","20161111",null,null,7.5,7.5,null,null,null,null,null,null,null,null,7.5]
[null,"Endimensionell analys 1","5MA153","20161201",null,null,7.5,7.5]
[null,"Endimensionell analys 2","5MA154","20170113",null,null,7.5,7.5]
[null,"Linjär algebra","5MA160","20170313",null,null,7.5,7.5]
[null,"Flervariabelanalys","5MA164","20170411",null,null,7.5,7.5]
[null,"Fysikens matematiska metoder","5MA122","20171218",null,null,15,15]
[null,"Fysikaliska modellers matematik/Fysikalisk modellering och beräkningsteknk","5FY031","20190209",null,null,10.5,10.5]
[null,"Teknisk beräkningsvetenskap I","5DV154","20171215",null,null,4.5,4.5,null,null,null,null,null,null,null,null,4.5]
[null,"Statistisk analys och mätvärdesbehandling "]
[null,"Statistik för tekniska fysiker","5MS043","20170530",null,null,6,null,6]
[null,"Mätmetoder och strålningsdetektorer",null,null,null,null,7.5,null,7.5]
[null,"Fysikalisk mätteknik/Fysikalisk mätteknik med ellära","5FY190","20190309",null,null,7.5,null,7.5]
[null,"Fysikalisk teori med tillämpningar "]
[null,"Klassisk mekanik A","5FY041","20170601",null,null,9,null,null,9]
[null,"Klassisk mekanik A",null,null,null,null,7.5,null,null,7.5]
[null,"Speciell relativitetsteori",null,null,null,null,1.5,null,null,1.5]
[null,"Modern fysik",null,null,null,null,4.5,null,null,4.5]
[null,"Vågfysik och optik B","5FY091","20180313",null,null,6,null,null,6]
[null,"Elektromagnetismens grunder","5FY127","20180828",null,null,6,null,null,6]
[null,"Analytisk mekanik C","5FY001","20180827",null,"Analytisk mekanik och Kärnfysik får ej ingå tillsammans inom ramen för examenskravet om 60 hp kurser inom området fysikalisk teori med tillämpningar",6,null,null,6]
[null,"Kärnfysik",null,null,null,"Kärnfysik och Analytisk mekanik får ej ingå tillsammans inom ramen för examenskravet om 60 hp kurser inom området fysikalisk teori med tillämpningar",7.5,null,null,7.5]
[null,"Elektrodynamik","5FY186","20181030",null,null,6,null,null,6]
[null,"Kvantfysik","5FY118","20180502",null,null,4.5,null,null,4.5]
[null,"Kvantmekanik 1","5FY156","20181213",null,"Kvantmekanik 1 och Kvantmekanikens grunder får inte ingå i examen tillsammans p.g.a. överlapp",6,null,null,6]
[null,"Kvantmekanikens grunder",null,null,null,"Kvantmekanikens grunder och Kvantmekanik 1 får inte ingå i examen tillsammans p.g.a. överlapp",7.5,null,null,7.5]
[null,"Termodynamik","5FY083","20190305",null,null,6,null,null,6]
[null,"Statistisk fysik","5FY076","20190301",null,null,4.5,null,null,4.5]
[null,"Fasta tillståndets fysik",null,null,null,null,7.5,null,null,7.5]
[null,"Fasta tillståndets fysik","5FY021","20190325",null,null,10.5,null,null,10.5]

{"sheet":"Allmänna ingenjörskurser","index":3,"n_rows":61,"n_cols":19,"rows_kept":61,"cut":false,"hidden":false,"merged":[[3,7,3,9],[3,10,3,11],[3,12,3,18],[2,7,2,18],[1,6,1,18]]}
[]
[null,null,null,null,null,null,{"$f":"Sammanfattning!G20","v":"Högskolepoäng (hp)"}]
[null,null,null,null,null,null,null,{"$f":"Sammanfattning!H21","v":"Varav (hp)…"}]
[null,null,null,null,null,null,null,{"$f":"Sammanfattning!H22","v":"Baskurser (hp)"},null,null,{"$f":"Sammanfattning!K22","v":"Övriga kurser"},null,{"$f":"Sammanfattning!M22","v":"Övriga krav"}]
[{"$f":"Sammanfattning!A23","v":"1."},{"$f":"Sammanfattning!B23","v":"2."},{"$f":"Sammanfattning!C23","v":"3."},{"$f":"Sammanfattning!D23","v":"4."},{"$f":"Sammanfattning!E23","v":"5."},{"$f":"Sammanfattning!F23","v":"6."},{"$f":"Sammanfattning!G23","v":"7."},{"$f":"Sammanfattning!H23","v":"8."},{"$f":"Sammanfattning!I23","v":"9."},{"$f":"Sammanfattning!J23","v":"10."},{"$f":"Sammanfattning!K23","v":"11."},{"$f":"Sammanfattning!L23","v":"12."},{"$f":"Sammanfattning!M23","v":"13."},{"$f":"Sammanfattning!N23","v":"14.1"},{"$f":"Sammanfattning!O23","v":"14.2"},{"$f":"Sammanfattning!P23","v":"15."},{"$f":"Sammanfattning!Q23","v":"16."},{"$f":"Sammanfattning!R23","v":"17."},{"$f":"Sammanfattning!S23","v":"18."}]
[{"$f":"Sammanfattning!A24","v":"Checkbox"},{"$f":"Sammanfattning!B24","v":"Kursnamn"},{"$f":"Sammanfattning!C24","v":"Kurskod"},{"$f":"Sammanfattning!D24","v":"Datum (ååååmmdd)"},{"$f":"Sammanfattning!E24","v":"Studentens kommentar"},{"$f":"Sammanfattning!F24","v":"Programledningens kommentar"},{"$f":"Sammanfattning!G24","v":"Hp"},{"$f":"Sammanfattning!H24","v":"MaBer"},{"$f":"Sammanfattning!I24","v":"StatMät"},{"$f":"Sammanfattning!J24","v":"FyT"},{"$f":"Sammanfattning!K24","v":"Aing"},{"$f":"Sammanfattning!L24","v":"Prof"},{"$f":"Sammanfattning!M24","v":"PL"},{"$f":"Sammanfattning!N24","v":"PaN"},{"$f":"Sammanfattning!O24","v":"PaTot"},{"$f":"Sammanfattning!P24","v":"Hut"},{"$f":"Sammanfattning!Q24","v":"Data"},{"$f":"Sammanfattning!R24","v":"Avn"},{"$f":"Sammanfattning!S24","v":"Fria"}]
[null,"Allmänna ingenjörskurser"]
[null,"Analog kretsteknik",null,null,null,null,6,null,null,null,6]
[null,"Artiﬁciell intelligens – grunderna","5DV124","20201106",null,null,7.5,null,null,null,7.5]
[null,"Bildgivande kärnspinnresonans och ultraljud",null,null,null,null,7.5,null,null,null,7.5,null,null,null,null,null,null,7.5]
[null,"Datastrukturer och algoritmer (C)","5DV149","20200622",null,null,7.5,null,null,null,7.5]
[null,"Design-Build-Test – projektkurs för ingenjörer",null,null,null,null,15,null,null,null,15,null,7.5,7.5,7.5,null,null,15]
[null,"Digital kretsteknik",null,null,null,null,4.5,null,null,null,4.5]
[null,"Djupa faltningsnät med tillämpningar i medicinsk bildanalys",null,null,null,null,7.5,null,null,null,7.5]
[null,"Engelska A, Academic writing",null,null,null,null,7.5,null,null,null,7.5]
[null,"Engelska för studerande på högskoleingenjörs-, civilingenjörs- och naturvetarprogrammen",null,null,null,null,7.5,null,null,null,7.5]
[null,"Forsknings- och utvecklingsprojekt inom teknisk fysik",null,null,null,null,15,null,null,null,15,null,null,null,15]
[null,"Forsknings- och utvecklingsprojekt inom teknisk fysik",null,null,null,null,3,null,null,null,3,null,null,null,3]
[null,"Forsknings- och utvecklingsprojekt inom teknisk fysik",null,null,null,null,4.5,null,null,null,4.5,null,null,null,4.5]
[null,"Forsknings- och utvecklingsprojekt inom teknisk fysik",null,null,null,null,6,null,null,null,6,null,null,null,6]
[null,"Forsknings- och utvecklingsprojekt inom teknisk fysik","5FY202","20191002",null,null,7.5,null,null,null,7.5,null,null,null,7.5]
[null,"Från prototyp till produkt ur ett CE-perspektiv",null,null,null,null,3.5,null,null,null,3.5]
[null,"Hållbar utveckling för ingenjörer",null,null,null,null,7.5,null,null,null,7.5,null,null,null,null,7.5]
[null,"Hållbar utveckling och strålningsmiljö","5RA029","20191220",null,null,7.5,null,null,null,7.5,null,null,null,null,7.5]
[null,"Hållbar utveckling och strålningsmiljö med projekt",null,null,null,null,10.5,null,null,null,10.5,null,null,null,3,7.5]
[null,"Industriell ekonomi A",null,null,null,null,7.5,null,null,null,7.5]
[null,"Informationsteori, nätverk och marknader",null,null,null,null,7.5,null,null,null,7.5,null,null,null,2.5]
[null,"Inledande ingenjörskurs, öppen ingång",null,null,null,null,7.5,null,null,null,7.5,null,null,null,1]
[null,"Kemometri",null,null,null,null,7.5,null,null,null,7.5]
[null,"Klinisk praktik i medicinsk strålningsfysik",null,null,null,null,12.5,null,null,null,12.5,null,null,null,null,null,null,12.5]
[null,"Kvalitetsprojekt inom Teknisk fysik",null,null,null,null,3,null,null,null,3,null,null,null,3]
[null,"Kvalitetsprojekt inom Teknisk fysik",null,null,null,null,4.5,null,null,null,4.5,null,null,null,4.5]
[null,"Kvalitetsprojekt inom Teknisk fysik",null,null,null,null,6,null,null,null,6,null,null,null,6]
[null,"Kvalitetsprojekt inom Teknisk fysik",null,null,null,null,7.5,null,null,null,7.5,null,null,null,7.5]
[null,"Kvalitetsteknik och försöksplanering","5MS001","20201101",null,null,7.5,null,null,null,7.5]
[null,"Kärnfysik",null,null,null,null,7.5,null,null,null,7.5]
[null,"Laborativ problemlösning i fysik",null,null,null,null,2,null,null,null,2]
[null,"Linjärprogrammering",null,null,null,null,7.5,null,null,null,7.5]
[null,"Medicin för ingenjörer",null,null,null,null,6,null,null,null,6]
[null,"Medicinsk teknik",null,null,null,null,10,null,null,null,10]
[null,"Medicinteknisk säkerhet och riskhantering",null,null,null,null,4,null,null,null,4]
[null,"Mikrodatorer i inbyggda system",null,null,null,null,7.5,null,null,null,7.5,null,null,null,5.5]
[null,"Objektorienterad programmeringsmetodik","5DV133","20200604",null,null,7.5,null,null,null,7.5]
[null,"Projekt i strålningsmiljö",null,null,null,null,3,null,null,null,3,null,null,null,3]
[null,"Projektledning 1",null,null,null,null,7.5,null,null,null,7.5,null,7.5]
[null,"Projektledning 1 Nätbaserad",null,null,null,null,7.5,null,null,null,7.5,null,7.5]
[null,"Reglersystem",null,null,null,null,7.5,null,null,null,7.5]
[null,"Riskanalys inom strålbehandling",null,null,null,null,7.5,null,null,null,7.5,null,null,7.5,7.5,null,null,7.5]
[null,"Studentkonferens i elektronik och mekatronik",null,null,null,null,7.5,null,null,null,7.5]
[null,"Systemnära programmering",null,null,null,null,7.5,null,null,null,7.5]
[null,"Teknik för hållbar utveckling",null,null,null,null,7.5,null,null,null,7.5,null,null,null,null,7.5]
[null,"Teknik, etik och miljö",null,null,null,null,7.5,null,null,null,7.5,null,null,null,null,7.5]
[null,"Teknikens idéhistoria",null,null,null,null,7.5,null,null,null,7.5]
[null,"Teknisk beräkningsvetenskap II","5DV123","20181022",null,null,4.5,null,null,null,4.5]
[null,"Transformmetoder",null,null,null,null,7.5,null,null,null,7.5,null,null,null,null,null,null,7.5]
[null,"Utvecklingsarbete i samverkan med näringslivet",null,null,null,null,15,null,null,null,15,null,null,15,15]
[null,"Utvecklingsarbete i samverkan med näringslivet","5FY132","20200904",null,null,3,null,null,null,3,null,null,3,3]
[null,"Utvecklingsarbete i samverkan med näringslivet",null,null,null,null,4.5,null,null,null,4.5,null,null,4.5,4.5]
[null,"Utvecklingsarbete i samverkan med näringslivet",null,null,null,null,6,null,null,null,6,null,null,6,6]
[null,"Utvecklingsarbete i samverkan med näringslivet",null,null,null,null,7.5,null,null,null,7.5,null,null,7.5,7.5]
[null,"Allmän ingenjörskurs (projektledning) grundnivå","IB940B","20201124","Tillgodoräknad kurs.",null,7.5,null,null,null,7.5,null,7.5]

{"sheet":"Profilkurser","index":4,"n_rows":74,"n_cols":19,"rows_kept":74,"cut":false,"hidden":false,"merged":[[3,7,3,9],[3,10,3,11],[3,12,3,18],[2,7,2,18],[1,6,1,18]]}
[]
[null,null,null,null,null,null,{"$f":"Sammanfattning!G20","v":"Högskolepoäng (hp)"}]
[null,null,null,null,null,null,null,{"$f":"Sammanfattning!H21","v":"Varav (hp)…"}]
[null,null,null,null,null,null,null,{"$f":"Sammanfattning!H22","v":"Baskurser (hp)"},null,null,{"$f":"Sammanfattning!K22","v":"Övriga kurser"},null,{"$f":"Sammanfattning!M22","v":"Övriga krav"}]
[{"$f":"Sammanfattning!A23","v":"1."},{"$f":"Sammanfattning!B23","v":"2."},{"$f":"Sammanfattning!C23","v":"3."},{"$f":"Sammanfattning!D23","v":"4."},{"$f":"Sammanfattning!E23","v":"5."},{"$f":"Sammanfattning!F23","v":"6."},{"$f":"Sammanfattning!G23","v":"7."},{"$f":"Sammanfattning!H23","v":"8."},{"$f":"Sammanfattning!I23","v":"9."},{"$f":"Sammanfattning!J23","v":"10."},{"$f":"Sammanfattning!K23","v":"11."},{"$f":"Sammanfattning!L23","v":"12."},{"$f":"Sammanfattning!M23","v":"13."},{"$f":"Sammanfattning!N23","v":"14.1"},{"$f":"Sammanfattning!O23","v":"14.2"},{"$f":"Sammanfattning!P23","v":"15."},{"$f":"Sammanfattning!Q23","v":"16."},{"$f":"Sammanfattning!R23","v":"17."},{"$f":"Sammanfattning!S23","v":"18."}]
[{"$f":"Sammanfattning!A24","v":"Checkbox"},{"$f":"Sammanfattning!B24","v":"Kursnamn"},{"$f":"Sammanfattning!C24","v":"Kurskod"},{"$f":"Sammanfattning!D24","v":"Datum (ååååmmdd)"},{"$f":"Sammanfattning!E24","v":"Studentens kommentar"},{"$f":"Sammanfattning!F24","v":"Programledningens kommentar"},{"$f":"Sammanfattning!G24","v":"Hp"},{"$f":"Sammanfattning!H24","v":"MaBer"},{"$f":"Sammanfattning!I24","v":"StatMät"},{"$f":"Sammanfattning!J24","v":"FyT"},{"$f":"Sammanfattning!K24","v":"Aing"},{"$f":"Sammanfattning!L24","v":"Prof"},{"$f":"Sammanfattning!M24","v":"PL"},{"$f":"Sammanfattning!N24","v":"PaN"},{"$f":"Sammanfattning!O24","v":"PaTot"},{"$f":"Sammanfattning!P24","v":"Hut"},{"$f":"Sammanfattning!Q24","v":"Data"},{"$f":"Sammanfattning!R24","v":"Avn"},{"$f":"Sammanfattning!S24","v":"Fria"}]
[null,"Profilkurser som finns i flera profiler"]
[null,"Aktuella forskningsområden i fysik",null,null,null,null,3,null,null,null,null,3,null,null,null,null,null,3]
[null,"Allmän relativitetsteori",null,null,null,null,7.5,null,null,null,null,7.5,null,null,null,null,null,7.5]
[null,"Astrofysik","5FY195","20190528",null,null,7.5,null,null,null,null,7.5,null,null,null,null,null,7.5]
[null,"Atom- och molekylfysik",null,null,null,null,7.5,null,null,null,null,7.5,null,null,null,null,null,7.5]
[null,"Avancerad strömningslära","5FY191","20190829",null,null,7.5,null,null,null,null,7.5,null,null,null,null,null,7.5]
[null,"Beröringsfria mätmetoder",null,null,null,null,7.5,null,null,null,null,7.5,null,null,null,null,null,7.5]
[null,"Biomedicinska sensorer och analys",null,null,null,null,7.5,null,null,null,null,7.5,null,null,null,null,null,7.5]
[null,"Elektrodynamik II",null,null,null,null,7.5,null,null,null,null,7.5,null,null,null,null,null,7.5]
[null,"Fysikens numeriska metoder",null,null,null,null,7.5,null,null,null,null,7.5,null,null,null,null,null,7.5]
[null,"Icke-linjär fysik",null,null,null,null,7.5,null,null,null,null,7.5,null,null,null,null,null,7.5]
[null,"Modellering och simulering","5FY176","20191130",null,null,7.5,null,null,null,null,7.5,null,null,null,null,null,7.5]
[null,"Multivariat dataanalys",null,null,null,null,7.5,null,null,null,null,7.5,null,null,null,null,null,7.5]
[null,"Numeriska metoder för partiella differentialekvationer","5MA184","20200116",null,null,7.5,null,null,null,null,7.5,null,null,null,null,null,7.5]
[null,"Projektkurs i datorseende",null,null,null,null,7.5,null,null,null,null,7.5,null,7.5,7.5,null,null,7.5]
[null,"Rymdplasmafysik",null,null,null,null,7.5,null,null,null,null,7.5,null,null,null,null,null,7.5]
[null,"Beräkningsfysik"]
[null,"Avancerade beräkningsmetoder i flödesmekanik","5FY167","20200117",null,null,7.5,null,null,null,null,7.5,null,null,null,null,null,7.5]
[null,"Matrisberäkningar och tillämpningar",null,null,null,null,7.5,null,null,null,null,7.5,null,null,null,null,null,7.5]
[null,"Monte Carlo-simuleringar av kritiska fenomen i fysik",null,null,null,null,7.5,null,null,null,null,7.5,null,null,null,null,null,7.5]
[null,"Optimering med tillämpningar",null,null,null,null,7.5,null,null,null,null,7.5,null,null,null,null,null,7.5]
[null,"Finansiell modellering"]
[null,"Finansiell ekonomi D2",null,null,null,null,7.5,null,null,null,null,7.5,null,null,null,null,null,7.5]
[null,"Finansiell ekonomi II D21",null,null,null,null,7.5,null,null,null,null,7.5,null,null,null,null,null,7.5]
[null,"Finansiell matematik",null,null,null,null,7.5,null,null,null,null,7.5,null,null,null,null,null,7.5]
[null,"Finita elementmetoden",null,null,null,null,7.5,null,null,null,null,7.5,null,null,null,null,null,7.5]
[null,"Monte Carlo-metoder för finansiella tillämpningar",null,null,null,null,7.5,null,null,null,null,7.5,null,null,null,null,null,7.5]
[null,"Stokastiska differentialekvationer",null,null,null,null,7.5,null,null,null,null,7.5,null,null,null,null,null,7.5]
[null,"Tidsserieanalys och spatial statistik",null,null,null,null,7.5,null,null,null,null,7.5,null,null,null,null,null,7.5]
[null,"Fotonik "]
[null,"Avancerade lasersystem och laserteknologi",null,null,null,null,7.5,null,null,null,null,7.5,null,null,null,null,null,7.5]
[null,"Laserbaserade spektroskopiska tekniker",null,null,null,null,7.5,null,null,null,null,7.5,null,null,null,null,null,7.5]
[null,"Laserfysik",null,null,null,null,7.5,null,null,null,null,7.5,null,null,null,null,null,7.5]
[null,"Optisk konstruktion",null,null,null,null,7.5,null,null,null,null,7.5,null,null,null,null,null,7.5]
[null,"Sjukhusfysik"]
[null,"Nukleärmedicinsk teknik",null,null,null,null,7.5,null,null,null,null,7.5,null,null,null,null,null,7.5]
[null,"Radioterapi",null,null,null,null,5,null,null,null,null,5,null,null,null,null,null,5]
[null,"Röntgenteknik",null,null,null,null,7.5,null,null,null,null,7.5,null,null,null,null,null,7.5]
[null,"Strålningsbiologi och strålskydd",null,null,null,null,7.5,null,null,null,null,7.5,null,null,null,null,null,7.5]
[null,"Strålningsdosimetri",null,null,null,null,15,null,null,null,null,15,null,null,5,null,null,15]
[null,"Strålningsväxelverkan",null,null,null,null,7.5,null,null,null,null,7.5,null,null,null,null,null,7.5]
[null,"Tillämpad dosimetri",null,null,null,null,5,null,null,null,null,5,null,null,null,null,null,5]
[null,"Medicinsk teknik"]
[null,"Spektroskopiska tekniker för materialvetenskap",null,null,null,null,7.5,null,null,null,null,7.5,null,null,null,null,null,7.5]
[null,"Tillämpad medicinsk bildbehandling",null,null,null,null,7.5,null,null,null,null,7.5,null,7.5,7.5,null,null,7.5]
[null,"Tillämpad digital signalbehandling",null,null,null,null,7.5,null,null,null,null,7.5,null,null,7.5,null,null,7.5]
[null,"Nanoteknik och avancerade material"]
[null,"Avancerade material",null,null,null,null,7.5,null,null,null,null,7.5,null,null,null,null,null,7.5]
[null,"Nanovetenskap",null,null,null,null,7.5,null,null,null,null,7.5,null,null,null,null,null,7.5]
[null,"Solceller",null,null,null,null,7.5,null,null,null,null,7.5,null,null,null,null,null,7.5]
[null,"Robotik"]
[null,"Adaptiv reglerteknik",null,null,null,null,7.5,null,null,null,null,7.5,null,null,null,null,null,7.5]
[null,"Linjära reglersystem",null,null,null,null,7.5,null,null,null,null,7.5,null,null,null,null,null,7.5]
[null,"Mekatronik",null,null,null,null,7.5,null,null,null,null,7.5,null,null,4,null,null,7.5]
[null,"Modellering inom robotik",null,null,null,null,7.5,null,null,null,null,7.5,null,null,1.5,null,null,7.5]
[null,"Optimal reglering av linjära system",null,null,null,null,7.5,null,null,null,null,7.5,null,null,null,null,null,7.5]
[null,"System och algoritmer för autonoma fordon",null,null,null,null,7.5,null,null,null,null,7.5,null,null,null,null,null,7.5]
[null,"Telerobotik och tillämpad sensorfusion",null,null,null,null,7.5,null,null,null,null,7.5,null,null,3,null,null,7.5]
[null,"Rymd- och astrofysik"]
[null,"Rymdfysik med mätteknik",null,null,null,null,7.5,null,null,null,null,7.5,null,null,null,null,null,7.5]
[null,"Sensorteknik och datorseende"]
[null,"Big data och analys av högdimensionella data","5MS062",20210114,null,null,7.5,null,null,null,null,7.5,null,null,null,null,null,7.5]
[null,"Maskininlärning",null,null,null,null,7.5,null,null,null,null,7.5,null,null,null,null,null,7.5]
[null,"Teoretisk Fysik"]
[null,"Kvantfältteori I",null,null,null,null,7.5,null,null,null,null,7.5,null,null,null,null,null,7.5]
[null,"Kvantfältteori II",null,null,null,null,7.5,null,null,null,null,7.5,null,null,null,null,null,7.5]
[null,"Kvantmekanik 2",null,null,null,null,7.5,null,null,null,null,7.5,null,null,null,null,null,7.5]
[null,"Dynamisk modellering av levande system",null,null,null,null,7.5,null,null,null,null,7.5,null,null,null,null,null,7.5]

{"sheet":"Övriga kurser","index":5,"n_rows":7,"n_cols":19,"rows_kept":7,"cut":false,"hidden":false,"merged":[[3,7,3,9],[3,10,3,11],[3,12,3,18],[2,7,2,18],[1,6,1,18]]}
[]
[null,null,null,null,null,null,{"$f":"Sammanfattning!G20","v":"Högskolepoäng (hp)"}]
[null,null,null,null,null,null,null,{"$f":"Sammanfattning!H21","v":"Varav (hp)…"}]
[null,null,null,null,null,null,null,{"$f":"Sammanfattning!H22","v":"Baskurser (hp)"},null,null,{"$f":"Sammanfattning!K22","v":"Övriga kurser"},null,{"$f":"Sammanfattning!M22","v":"Övriga krav"}]
[{"$f":"Sammanfattning!A23","v":"1."},{"$f":"Sammanfattning!B23","v":"2."},{"$f":"Sammanfattning!C23","v":"3."},{"$f":"Sammanfattning!D23","v":"4."},{"$f":"Sammanfattning!E23","v":"5."},{"$f":"Sammanfattning!F23","v":"6."},{"$f":"Sammanfattning!G23","v":"7."},{"$f":"Sammanfattning!H23","v":"8."},{"$f":"Sammanfattning!I23","v":"9."},{"$f":"Sammanfattning!J23","v":"10."},{"$f":"Sammanfattning!K23","v":"11."},{"$f":"Sammanfattning!L23","v":"12."},{"$f":"Sammanfattning!M23","v":"13."},{"$f":"Sammanfattning!N23","v":"14.1"},{"$f":"Sammanfattning!O23","v":"14.2"},{"$f":"Sammanfattning!P23","v":"15."},{"$f":"Sammanfattning!Q23","v":"16."},{"$f":"Sammanfattning!R23","v":"17."},{"$f":"Sammanfattning!S23","v":"18."}]
[{"$f":"Sammanfattning!A24","v":"Checkbox"},{"$f":"Sammanfattning!B24","v":"Kursnamn"},{"$f":"Sammanfattning!C24","v":"Kurskod"},{"$f":"Sammanfattning!D24","v":"Datum (ååååmmdd)"},{"$f":"Sammanfattning!E24","v":"Studentens kommentar"},{"$f":"Sammanfattning!F24","v":"Programledningens kommentar"},{"$f":"Sammanfattning!G24","v":"Hp"},{"$f":"Sammanfattning!H24","v":"MaBer"},{"$f":"Sammanfattning!I24","v":"StatMät"},{"$f":"Sammanfattning!J24","v":"FyT"},{"$f":"Sammanfattning!K24","v":"Aing"},{"$f":"Sammanfattning!L24","v":"Prof"},{"$f":"Sammanfattning!M24","v":"PL"},{"$f":"Sammanfattning!N24","v":"PaN"},{"$f":"Sammanfattning!O24","v":"PaTot"},{"$f":"Sammanfattning!P24","v":"Hut"},{"$f":"Sammanfattning!Q24","v":"Data"},{"$f":"Sammanfattning!R24","v":"Avn"},{"$f":"Sammanfattning!S24","v":"Fria"}]
[null,"Övriga Kurser"]

{"sheet":"Patch notes","index":6,"n_rows":34,"n_cols":3,"rows_kept":34,"cut":false,"hidden":false,"merged":[[20,1,32,1],[33,2,36,2],[0,0,0,2],[1,0,1,2],[16,1,19,1]]}
["Patch notes"]
["Här hittar du de korrigeringar och buggfixar som gjorts i ISPn i ordningen nyast-äldst."]
[]
["Version","Åtgärder","Ändrad av"]
["v.1.2.6","• Lade till dubbelnamn till kursen Fysikaliska modellers matematik / Fysikalisk modellering med beräkningsteknik","    Carl Johansson, 2024-09-16"]
[null,"• Lade till dubbelnamn till kursen Fysikalisk mätteknik / Fysikalisk mätteknik med ellära"]
[null,"• Lade till kursen: Tekniska tillämpningar i klassisk och modern fysik under baskurser under allmänna ingengörsområdet"]
["   v.1.2.5","• Tydliggjort vad som krävs för kurserna Analytisk mekanik och Kärnfysik samt Kvantmekanik 1 och kvantmekaniksens grunder","   Maria Hamrin, 2024-04-17"]
["v.1.2.4","• Lagt till projektpoäng till kurserna: Mekatronik, Modellering inom robotik och telerobotik och tillämpad sensorfusion","Marcus Sundin, F18, 2022-04-27"]
["v.1.2.3","• DBT har nu 15 hp avn","Marcus Sundin, F18, 2022-01-21"]
[null,"• Kärnfysik (SjF) har lagts till"]
["v1.2.2","• Lagt till poäng i Hut för Hållbar utveckling och strålningsmiljö med projekt ","Henrik Linder, F18, 2021-09-22"]
[null,"• Justerat till rätt poäng Aing för Informationsteori, nätverk och marknader"]
["v1.2.1","• Buggfix, Exjobb ger nu rätt poäng i sammanfattning","Henrik Linder, F18, 2021-08-16"]
["v1.2","• Tagit bort PaSam och PaStor.","Fritz Forsgren, F16, 2021-03-29"]
["v1.1.2","• Uppdaterat i instruktionerna på flik 1.","Maria Harin, programansvarig, 2021-02-28"]
["v1.1.1","• Tilägg av instruktion för inlämning/mailning av ISP. \n• Revidering för ny utbildningsplan.\n      - Ändrat profilnamn för sensorteknik och datoranalys till sensorteknik och datorseende.\n      - Lagt till nya kurser och tagit bort inaktuella kurser.","Rebecca Viklund F17 (Kvalitetsamanuens 20/21)"]
[]
[]
[]
["v1.1","• Korrigerat kursnamn i enlighet med kurssök på umu.se.\n• Lagt till upprepande tabellhuvuden under Sammanfattning och på resterande kursflikar låst tabellhuvuden vid scrollning.\n• Ändrat minimikravet för PaStor från 7.5 hp till 15 hp.\n• Metoder och verktyg för ingenjörer: lagt in att kursen ger 7.5 hp i kategorin Aing samt 1 hp i kategorin PaStor.\n• Ingenjörens roll i arbetslivet: lagt in att kursen ger 7.5 hp i kategorin Aing samt 4.5 hp i kategorin PaStor.\n• Design-Build-Test – projektkurs för ingenjörer: lagt in att kursen ger 7.5 hp i kategorin PaSam samt 7.5 hp i kategorin PaStor.\n• Inledande ingenjörskurs, öppen ingång: kursen ger nu 1 hp i kategorin PaStor.\n• * Förtydligande text tillagd under Instruktioner.\n• Kolumnförklaringen av PaTot under Instruktioner hänvisar nu till rätt punkter.\n• Förtydligat och kompletterat med text under Instruktioner.\n• PaSam-poäng inlagt.\n• Nu är ISP v1.1 kompatibel med LibreOffice!","Malin Rantala F18 (IT-amanuens 20/21)"]
[]
[]
[]
[]
[]
[]
[]
[]
[]
[]
[]
[]
["v1.0","Första upplagan av ISPn förhoppningsvis utan buggar, kommande bugfixar läggs in ovanför denna rad.","Första upplagan av denna ISP är skapad av: Anna Palmberger F16, Fritz Forsgren F16 och Johan Fjellström F16. (vt 2020)"]

{"sheet":"Random code","index":7,"n_rows":17,"n_cols":6,"rows_kept":17,"cut":false,"hidden":true,"merged":[]}
["Välj ett alternativ",null,null,null,null,"Matematiska och beräkningsvetenskapliga verktyg "]
["Ansökan om examen",null,null,null,null,"Statistisk analys och mätvärdesbehandling "]
["Ansökan om examensarbete",null,null,null,null,"Fysikalisk teori med tillämpningar "]
["Ansökan om utlandsstudier",null,null,null,null,"Baskurser inom allmänna ingenjörsområdet"]
["Planering av studier",null,null,null,null,"Profilkurser som finns i flera profiler"]
["Annat (skriv kommentar nedan)",null,null,null,null,"Beräkningsfysik"]
[null,null,null,null,null,"Finansiell modellering"]
[null,null,null,null,null,"Fotonik "]
[null,null,null,null,null,"Sjukhusfysik"]
[null,null,null,null,null,"Medicinsk teknik"]
[null,null,null,null,null,"Nanoteknik och avancerade material"]
[null,null,null,null,null,"Robotik"]
[null,null,null,null,null,"Rymd- och astrofysik"]
[null,null,null,null,null,"Sensorteknik och dataanalys"]
[null,null,null,null,null,"Teoretisk Fysik"]
[null,null,null,null,null,"Övriga Kurser"]
[null,null,null,null,null,"Allmänna ingenjörskurser"]

{"sheet":"Ej inlagda kurser","index":8,"n_rows":3,"n_cols":2,"rows_kept":3,"cut":false,"hidden":false,"merged":[]}
["OBS! Lägg in dessa kurser manuellt under rätt flik. Töm denna kurslista innan du genererar sammanfattningen"]
[]
[null,"Kursnamn"]